[Event "Titled Tuesday Blitz September 14 2021"]
[White "Nozdrachev, Leonid"]
[Black "Lashkin, Jegor"]
[WhiteFideId "24113433"]
[BlackFideId "13907808"]
[WhiteElo "2196"]
[BlackElo "2293"]
[Result "1-0"]
[Round "02"]
[TimeControl "180+1"]
[Date "2021.09.15"]
[WhiteClock "0:00:12"]
[BlackClock "0:00:04"]

1. e4 {[%clk 0:03:00]}  c5 {[%clk 0:03:00]} 2. c3 {[%clk 0:03:00]}  d5 {[%clk 0:03:00]} 3. exd5 {[%clk 0:02:59]}  Qxd5 {[%clk 0:03:00]} 4. d4 {[%clk 0:03:00]}  Nf6 {[%clk 0:03:01]} 5. Nf3 {[%clk 0:02:59]}  e6 {[%clk 0:03:01]} 6. Be2 {[%clk 0:02:56]}  Be7 {[%clk 0:03:01]} 7. Be3 {[%clk 0:02:53]}  Nbd7 {[%clk 0:02:59]} 8. O-O {[%clk 0:02:53]}  O-O {[%clk 0:02:59]} 9. dxc5 {[%clk 0:02:51]}  Bxc5 {[%clk 0:02:52]} 10. Bxc5 {[%clk 0:02:48]}  Qxc5 {[%clk 0:02:51]} 11. Qd4 {[%clk 0:02:45]}  b6 {[%clk 0:02:49]} 12. Nbd2 {[%clk 0:02:40]}  Bb7 {[%clk 0:02:48]} 13. Nb3 {[%clk 0:02:40]}  Qxd4 {[%clk 0:02:35]} 14. Nfxd4 {[%clk 0:02:41]}  a6 {[%clk 0:02:18]} 15. Rad1 {[%clk 0:02:39]}  Ne5 {[%clk 0:02:11]} 16. Rfe1 {[%clk 0:02:35]}  Ng6 {[%clk 0:02:03]} 17. Bf3 {[%clk 0:02:32]}  Bxf3 {[%clk 0:02:00]} 18. Nxf3 {[%clk 0:02:33]}  Rfd8 {[%clk 0:02:00]} 19. g3 {[%clk 0:02:32]}  Kf8 {[%clk 0:01:59]} 20. Kf1 {[%clk 0:02:32]}  Ke8 {[%clk 0:01:53]} 21. Nbd4 {[%clk 0:02:29]}  Rac8 {[%clk 0:01:50]} 22. h4 {[%clk 0:02:25]}  Rd5 {[%clk 0:01:42]} 23. Nc2 {[%clk 0:02:13]}  h6 {[%clk 0:01:36]} 24. Nb4 {[%clk 0:02:09]}  Rxd1 {[%clk 0:01:34]} 25. Rxd1 {[%clk 0:02:10]}  a5 {[%clk 0:01:34]} 26. Nc2 {[%clk 0:02:07]}  Nd7 {[%clk 0:01:25]} 27. Ne3 {[%clk 0:02:00]}  b5 {[%clk 0:01:22]} 28. Rd6 {[%clk 0:01:51]}  b4 {[%clk 0:01:21]} 29. c4 {[%clk 0:01:49]}  Nc5 {[%clk 0:01:12]} 30. Nd4 {[%clk 0:01:40]}  Ne5 {[%clk 0:01:07]} 31. Nb5 {[%clk 0:01:37]}  Ke7 {[%clk 0:01:06]} 32. Ke2 {[%clk 0:01:32]}  Ne4 {[%clk 0:00:47]} 33. Ra6 {[%clk 0:01:30]}  Nc6 {[%clk 0:00:37]} 34. Na7 {[%clk 0:01:19]}  Nd4+ {[%clk 0:00:33]} 35. Kd3 {[%clk 0:01:14]}  Rd8 {[%clk 0:00:19]} 36. Kxe4 {[%clk 0:01:12]}  f5+ {[%clk 0:00:19]} 37. Kd3 {[%clk 0:01:03]}  g5 {[%clk 0:00:10]} 38. h5 {[%clk 0:01:00]}  g4 {[%clk 0:00:10]} 39. Nd5+ {[%clk 0:00:56]}  exd5 {[%clk 0:00:09]} 40. Kxd4 {[%clk 0:00:56]}  dxc4+ {[%clk 0:00:10]} 41. Kxc4 {[%clk 0:00:53]}  Rd2 {[%clk 0:00:10]} 42. Rxh6 {[%clk 0:00:52]}  Rxf2 {[%clk 0:00:10]} 43. Nc6+ {[%clk 0:00:50]}  Kf8 {[%clk 0:00:10]} 44. Nxa5 {[%clk 0:00:46]}  Rxb2 {[%clk 0:00:09]} 45. Rf6+ {[%clk 0:00:46]}  Kg7 {[%clk 0:00:10]} 46. Rxf5 {[%clk 0:00:46]}  Rxa2 {[%clk 0:00:10]} 47. Kxb4 {[%clk 0:00:38]}  Rg2 {[%clk 0:00:09]} 48. Rg5+ {[%clk 0:00:35]}  Kh6 {[%clk 0:00:09]} 49. Rxg4 {[%clk 0:00:34]}  Kxh5 {[%clk 0:00:09]} 50. Rg8 {[%clk 0:00:32]}  Re2 {[%clk 0:00:08]} 51. Nc4 {[%clk 0:00:29]}  Re4 {[%clk 0:00:08]} 52. Kc5 {[%clk 0:00:27]}  Rg4 {[%clk 0:00:08]} 53. Rh8+ {[%clk 0:00:23]}  Kg5 {[%clk 0:00:08]} 54. Nd6 {[%clk 0:00:22]}  Kf6 {[%clk 0:00:06]} 55. Kd5 {[%clk 0:00:20]}  Rg5+ {[%clk 0:00:04]} 56. Kd4 {[%clk 0:00:18]}  Rg4+ {[%clk 0:00:04]} 57. Ne4+ {[%clk 0:00:17]}  Kf5 {[%clk 0:00:04]} 58. Rf8+ {[%clk 0:00:13]}  Ke6 {[%clk 0:00:04]} 59. Rf6+ {[%clk 0:00:13]}  Ke7 {[%clk 0:00:04]} 60. Rh6 {[%clk 0:00:14]}  Kf7 {[%clk 0:00:03]} 61. Ke5 {[%clk 0:00:14]}  Rg8 {[%clk 0:00:03]} 62. Ra6 {[%clk 0:00:14]}  Re8+ {[%clk 0:00:03]} 63. Kf5 {[%clk 0:00:14]}  Rb8 {[%clk 0:00:03]} 64. Ra7+ {[%clk 0:00:14]}  Kf8 {[%clk 0:00:03]} 65. g4 {[%clk 0:00:14]}  Rb5+ {[%clk 0:00:03]} 66. Kf4 {[%clk 0:00:14]}  Rb4 {[%clk 0:00:04]} 67. g5 {[%clk 0:00:14]}  Rb1 {[%clk 0:00:04]} 68. Kf5 {[%clk 0:00:14]}  Rf1+ {[%clk 0:00:04]} 69. Kg6 {[%clk 0:00:14]}  Rb1 {[%clk 0:00:05]} 70. Nf6 {[%clk 0:00:13]}  Rb7 {[%clk 0:00:05]} 71. Ra8+ {[%clk 0:00:12]}  Ke7 {[%clk 0:00:05]} 72. Re8+ {[%clk 0:00:12]}  Kd6 {[%clk 0:00:05]} 73. Re2 {[%clk 0:00:12]}  Rb1 {[%clk 0:00:04]} 74. Kg7 {[%clk 0:00:12]}  Rg1 {[%clk 0:00:04]} 75. g6 {[%clk 0:00:12]}  Rg3 {[%clk 0:00:04]} 76. Nh5 {[%clk 0:00:12]}  Rg1 {[%clk 0:00:04]} 77. Kh6 {[%clk 0:00:12]}  Kd7 {[%clk 0:00:04]} 78. g7 {[%clk 0:00:13]}  Rxg7 {[%clk 0:00:04]} 79. Nxg7 {[%clk 0:00:12]} 1-0


[Site "https://www.chess.com"]

[Event "Titled Tuesday Blitz September 14 2021"]
[White "Sorokin, Aleksey"]
[Black "Samani, Yamac"]
[WhiteFideId "24176460"]
[BlackFideId "6352634"]
[WhiteElo "2476"]
[BlackElo "2267"]
[Result "1-0"]
[Round "02"]
[TimeControl "180+1"]
[Date "2021.09.15"]
[WhiteClock "0:00:30"]
[BlackClock "0:00:03"]

1. c4 {[%clk 0:03:00]}  g6 {[%clk 0:02:58]} 2. Nc3 {[%clk 0:02:59]}  Bg7 {[%clk 0:02:58]} 3. Nf3 {[%clk 0:02:59]}  Nf6 {[%clk 0:02:58]} 4. e4 {[%clk 0:02:59]}  O-O {[%clk 0:02:57]} 5. d4 {[%clk 0:02:59]}  d6 {[%clk 0:02:57]} 6. Be2 {[%clk 0:02:59]}  c5 {[%clk 0:02:57]} 7. O-O {[%clk 0:02:56]}  cxd4 {[%clk 0:02:58]} 8. Nxd4 {[%clk 0:02:57]}  Nc6 {[%clk 0:02:58]} 9. Be3 {[%clk 0:02:57]}  Bd7 {[%clk 0:02:56]} 10. Rc1 {[%clk 0:02:55]}  a5 {[%clk 0:02:51]} 11. Qd2 {[%clk 0:02:54]}  a4 {[%clk 0:02:44]} 12. Rfd1 {[%clk 0:02:53]}  Qa5 {[%clk 0:02:34]} 13. f3 {[%clk 0:02:43]}  Rfc8 {[%clk 0:02:30]} 14. Ndb5 {[%clk 0:02:37]}  Ne5 {[%clk 0:02:20]} 15. b3 {[%clk 0:02:34]}  axb3 {[%clk 0:02:14]} 16. axb3 {[%clk 0:02:35]}  Qb4 {[%clk 0:02:00]} 17. Nd4 {[%clk 0:02:33]}  Nc6 {[%clk 0:01:51]} 18. Nc2 {[%clk 0:02:24]}  Qa5 {[%clk 0:01:34]} 19. b4 {[%clk 0:02:24]}  Qh5 {[%clk 0:01:10]} 20. h3 {[%clk 0:01:46]}  Qh4 {[%clk 0:00:50]} 21. Bf2 {[%clk 0:01:33]}  Qh6 {[%clk 0:00:48]} 22. Be3 {[%clk 0:01:33]}  Qh4 {[%clk 0:00:48]} 23. Kh2 {[%clk 0:01:11]}  Nh5 {[%clk 0:00:41]} 24. Nd5 {[%clk 0:01:04]}  Qg3+ {[%clk 0:00:34]} 25. Kg1 {[%clk 0:00:57]}  Bxh3 {[%clk 0:00:34]} 26. Bf1 {[%clk 0:00:56]}  Be5 {[%clk 0:00:22]} 27. f4 {[%clk 0:00:51]}  Bg7 {[%clk 0:00:15]} 28. Bf2 {[%clk 0:00:46]}  Qg4 {[%clk 0:00:14]} 29. Nce3 {[%clk 0:00:46]}  Qe6 {[%clk 0:00:10]} 30. gxh3 {[%clk 0:00:46]}  Qxe4 {[%clk 0:00:09]} 31. Bg2 {[%clk 0:00:38]}  Qe6 {[%clk 0:00:06]} 32. Re1 {[%clk 0:00:33]}  Nd4 {[%clk 0:00:03]} 33. Ng4 {[%clk 0:00:30]}  Qd7 {[%clk 0:00:03]} 34. Bxd4 {[%clk 0:00:30]} 1-0


[Site "https://www.chess.com"]

[Event "Titled Tuesday Blitz September 14 2021"]
[White "Tabatabaei, M. Amin"]
[Black "Suvorov, Alexander"]
[WhiteFideId "12521213"]
[BlackFideId "12977063"]
[WhiteElo "2555"]
[BlackElo "2221"]
[Result "1-0"]
[Round "02"]
[TimeControl "180+1"]
[Date "2021.09.15"]
[WhiteClock "0:01:24"]
[BlackClock "0:00:54"]

1. b3 {[%clk 0:03:00]}  e5 {[%clk 0:02:55]} 2. Bb2 {[%clk 0:03:00]}  d6 {[%clk 0:02:50]} 3. c4 {[%clk 0:03:00]}  g6 {[%clk 0:02:50]} 4. d4 {[%clk 0:02:59]}  Bg7 {[%clk 0:02:45]} 5. dxe5 {[%clk 0:02:57]}  Bxe5 {[%clk 0:02:46]} 6. Bxe5 {[%clk 0:02:56]}  dxe5 {[%clk 0:02:47]} 7. Qxd8+ {[%clk 0:02:57]}  Kxd8 {[%clk 0:02:48]} 8. Nc3 {[%clk 0:02:54]}  c6 {[%clk 0:02:44]} 9. O-O-O {[%clk 0:02:45]}  Kc7 {[%clk 0:02:43]} 10. Ne4 {[%clk 0:02:44]}  Na6 {[%clk 0:02:15]} 11. Nf3 {[%clk 0:02:35]}  f6 {[%clk 0:02:10]} 12. e3 {[%clk 0:02:28]}  Bf5 {[%clk 0:02:07]} 13. Ng3 {[%clk 0:02:18]}  Be6 {[%clk 0:01:58]} 14. Kb2 {[%clk 0:02:16]}  Ne7 {[%clk 0:01:56]} 15. Be2 {[%clk 0:02:16]}  Nc5 {[%clk 0:01:49]} 16. b4 {[%clk 0:02:12]}  Na4+ {[%clk 0:01:43]} 17. Kb3 {[%clk 0:02:11]}  b5 {[%clk 0:01:30]} 18. Ne4 {[%clk 0:02:11]}  Nb6 {[%clk 0:01:25]} 19. Nxf6 {[%clk 0:02:06]}  Raf8 {[%clk 0:01:11]} 20. Ne4 {[%clk 0:02:02]}  Nxc4 {[%clk 0:01:06]} 21. Nc5 {[%clk 0:01:52]}  Bd5 {[%clk 0:01:04]} 22. Bxc4 {[%clk 0:01:45]}  Bxc4+ {[%clk 0:01:02]} 23. Kc3 {[%clk 0:01:42]}  Nd5+ {[%clk 0:01:02]} 24. Kb2 {[%clk 0:01:36]}  Nxb4 {[%clk 0:01:02]} 25. a3 {[%clk 0:01:32]}  Nd5 {[%clk 0:01:00]} 26. Ne6+ {[%clk 0:01:32]}  Kd6 {[%clk 0:00:59]} 27. Nxf8 {[%clk 0:01:30]}  Rxf8 {[%clk 0:01:00]} 28. e4 {[%clk 0:01:30]}  a5 {[%clk 0:00:58]} 29. Rhe1 {[%clk 0:01:28]}  b4 {[%clk 0:00:54]} 30. exd5 {[%clk 0:01:25]}  bxa3+ {[%clk 0:00:54]} 31. Kxa3 {[%clk 0:01:25]}  cxd5 {[%clk 0:00:54]} 32. Nxe5 {[%clk 0:01:24]} 1-0


[Site "https://www.chess.com"]

[Event "Titled Tuesday Blitz September 14 2021"]
[White "Visakh N R"]
[Black "Aldokhin, Ivan"]
[WhiteFideId "25012223"]
[BlackFideId "24115720"]
[WhiteElo "2454"]
[BlackElo "2265"]
[Result "0-1"]
[Round "02"]
[TimeControl "180+1"]
[Date "2021.09.15"]
[WhiteClock "0:00:02"]
[BlackClock "0:00:04"]

1. d4 {[%clk 0:03:00]}  Nf6 {[%clk 0:02:58]} 2. c4 {[%clk 0:03:00]}  g6 {[%clk 0:02:55]} 3. Nc3 {[%clk 0:02:47]}  Bg7 {[%clk 0:02:56]} 4. e4 {[%clk 0:02:47]}  d6 {[%clk 0:02:57]} 5. f3 {[%clk 0:02:47]}  O-O {[%clk 0:02:55]} 6. Be3 {[%clk 0:02:48]}  c6 {[%clk 0:02:52]} 7. Qd2 {[%clk 0:02:46]}  d5 {[%clk 0:02:52]} 8. e5 {[%clk 0:02:41]}  Nfd7 {[%clk 0:02:37]} 9. cxd5 {[%clk 0:02:40]}  cxd5 {[%clk 0:02:38]} 10. Nxd5 {[%clk 0:02:38]}  Nc6 {[%clk 0:02:37]} 11. Nc3 {[%clk 0:02:36]}  Nb6 {[%clk 0:02:33]} 12. Rc1 {[%clk 0:02:28]}  f6 {[%clk 0:02:21]} 13. f4 {[%clk 0:01:59]}  fxe5 {[%clk 0:02:17]} 14. dxe5 {[%clk 0:01:56]}  Qxd2+ {[%clk 0:02:05]} 15. Bxd2 {[%clk 0:01:57]}  g5 {[%clk 0:02:04]} 16. g3 {[%clk 0:01:38]}  gxf4 {[%clk 0:02:03]} 17. gxf4 {[%clk 0:01:37]}  Nd4 {[%clk 0:01:51]} 18. Nb5 {[%clk 0:01:31]}  Nxb5 {[%clk 0:01:43]} 19. Bxb5 {[%clk 0:01:32]}  Be6 {[%clk 0:01:43]} 20. Ne2 {[%clk 0:01:21]}  Bxa2 {[%clk 0:01:31]} 21. Rg1 {[%clk 0:01:16]}  Kh8 {[%clk 0:01:29]} 22. Rc7 {[%clk 0:01:14]}  Nd5 {[%clk 0:01:15]} 23. Rxb7 {[%clk 0:01:12]}  Rab8 {[%clk 0:01:11]} 24. Bc6 {[%clk 0:01:11]}  Rxb7 {[%clk 0:01:09]} 25. Bxb7 {[%clk 0:01:12]}  Rb8 {[%clk 0:01:08]} 26. Bxd5 {[%clk 0:01:05]}  Bxd5 {[%clk 0:01:09]} 27. Bc3 {[%clk 0:01:04]}  e6 {[%clk 0:01:03]} 28. Nd4 {[%clk 0:01:01]}  Rf8 {[%clk 0:00:57]} 29. Rf1 {[%clk 0:00:55]}  Bh6 {[%clk 0:00:57]} 30. f5 {[%clk 0:00:53]}  exf5 {[%clk 0:00:34]} 31. Nxf5 {[%clk 0:00:46]}  Bg5 {[%clk 0:00:20]} 32. e6+ {[%clk 0:00:42]}  Bf6 {[%clk 0:00:20]} 33. Nd4 {[%clk 0:00:19]}  Bh4+ {[%clk 0:00:17]} 34. Kd2 {[%clk 0:00:11]}  Rxf1 {[%clk 0:00:14]} 35. Nf5+ {[%clk 0:00:08]}  Kg8 {[%clk 0:00:12]} 36. Nxh4 {[%clk 0:00:09]}  Bxe6 {[%clk 0:00:12]} 37. Ke3 {[%clk 0:00:09]}  Bd5 {[%clk 0:00:09]} 38. Kd4 {[%clk 0:00:08]}  Bb7 {[%clk 0:00:07]} 39. Ke3 {[%clk 0:00:07]}  Kf7 {[%clk 0:00:07]} 40. Be5 {[%clk 0:00:06]}  Ke6 {[%clk 0:00:07]} 41. Bd4 {[%clk 0:00:03]}  Re1+ {[%clk 0:00:06]} 42. Kd2 {[%clk 0:00:03]}  Rf1 {[%clk 0:00:06]} 43. Bxa7 {[%clk 0:00:02]}  Rh1 {[%clk 0:00:05]} 44. Ke3 {[%clk 0:00:02]}  Rxh2 {[%clk 0:00:04]} 45. Nf3 {[%clk 0:00:02]}  Rh3 {[%clk 0:00:04]} 0-1


[Site "https://www.chess.com"]

[Event "Titled Tuesday Blitz September 14 2021"]
[White "Woodward, Andy"]
[Black "Chigaev, Maksim"]
[WhiteFideId "30953499"]
[BlackFideId "4108116"]
[WhiteElo "2137"]
[BlackElo "2610"]
[Result "0-1"]
[Round "02"]
[TimeControl "180+1"]
[Date "2021.09.15"]
[WhiteClock "0:00:19"]
[BlackClock "0:00:11"]

1. d4 {[%clk 0:03:00]}  Nf6 {[%clk 0:02:59]} 2. c4 {[%clk 0:03:01]}  g6 {[%clk 0:03:00]} 3. Nc3 {[%clk 0:03:01]}  Bg7 {[%clk 0:03:01]} 4. g3 {[%clk 0:03:01]}  O-O {[%clk 0:03:00]} 5. Bg2 {[%clk 0:03:02]}  d6 {[%clk 0:03:01]} 6. Nf3 {[%clk 0:03:02]}  c5 {[%clk 0:03:01]} 7. O-O {[%clk 0:03:03]}  Nc6 {[%clk 0:03:01]} 8. d5 {[%clk 0:03:02]}  Na5 {[%clk 0:03:01]} 9. Nd2 {[%clk 0:03:03]}  a6 {[%clk 0:03:01]} 10. Qc2 {[%clk 0:03:02]}  b5 {[%clk 0:03:02]} 11. b3 {[%clk 0:03:01]}  b4 {[%clk 0:03:01]} 12. Nd1 {[%clk 0:03:00]}  Bf5 {[%clk 0:03:02]} 13. e4 {[%clk 0:02:52]}  Nxe4 {[%clk 0:03:02]} 14. Bxe4 {[%clk 0:02:46]}  Bxe4 {[%clk 0:03:00]} 15. Nxe4 {[%clk 0:02:47]}  Bxa1 {[%clk 0:03:00]} 16. Bh6 {[%clk 0:02:47]}  Bg7 {[%clk 0:03:00]} 17. Bxg7 {[%clk 0:02:47]}  Kxg7 {[%clk 0:03:01]} 18. Ne3 {[%clk 0:02:46]}  Nb7 {[%clk 0:02:56]} 19. Qb2+ {[%clk 0:02:46]}  Kg8 {[%clk 0:02:20]} 20. Ng4 {[%clk 0:02:46]}  f6 {[%clk 0:02:05]} 21. Ng5 {[%clk 0:02:44]}  Qd7 {[%clk 0:01:37]} 22. Ne6 {[%clk 0:02:42]}  h5 {[%clk 0:01:33]} 23. Ne3 {[%clk 0:02:34]}  Nd8 {[%clk 0:01:14]} 24. Qc2 {[%clk 0:02:16]}  f5 {[%clk 0:01:01]} 25. Nxf8 {[%clk 0:02:04]}  Kxf8 {[%clk 0:01:02]} 26. Ng2 {[%clk 0:02:05]}  e5 {[%clk 0:00:56]} 27. dxe6 {[%clk 0:01:42]}  Nxe6 {[%clk 0:00:56]} 28. Qd2 {[%clk 0:01:42]}  Nd4 {[%clk 0:00:49]} 29. Nh4 {[%clk 0:01:41]}  Kg7 {[%clk 0:00:43]} 30. Rd1 {[%clk 0:01:38]}  Qe7 {[%clk 0:00:34]} 31. Qd3 {[%clk 0:00:21]}  Re8 {[%clk 0:00:32]} 32. Ng2 {[%clk 0:00:18]}  Qe2 {[%clk 0:00:20]} 33. Nf4 {[%clk 0:00:16]}  Qxd3 {[%clk 0:00:16]} 34. Rxd3 {[%clk 0:00:16]}  a5 {[%clk 0:00:11]} 35. Kg2 {[%clk 0:00:14]}  Kf7 {[%clk 0:00:10]} 36. h4 {[%clk 0:00:14]}  Re1 {[%clk 0:00:10]} 37. Nd5 {[%clk 0:00:12]}  Re2 {[%clk 0:00:09]} 38. Nb6 {[%clk 0:00:07]}  Rxa2 {[%clk 0:00:08]} 39. Nc8 {[%clk 0:00:07]}  Ke6 {[%clk 0:00:08]} 40. Re3+ {[%clk 0:00:08]}  Kd7 {[%clk 0:00:08]} 41. Nb6+ {[%clk 0:00:08]}  Kc6 {[%clk 0:00:08]} 42. Nd5 {[%clk 0:00:09]}  Re2 {[%clk 0:00:09]} 43. Rd3 {[%clk 0:00:07]}  a4 {[%clk 0:00:06]} 44. bxa4 {[%clk 0:00:07]}  b3 {[%clk 0:00:07]} 45. a5 {[%clk 0:00:05]}  b2 {[%clk 0:00:07]} 46. Nc3 {[%clk 0:00:05]}  Rc2 {[%clk 0:00:07]} 47. Nb1 {[%clk 0:00:03]}  Rc1 {[%clk 0:00:07]} 48. Nd2 {[%clk 0:00:02]}  Rd1 {[%clk 0:00:07]} 49. a6 {[%clk 0:00:01]}  Kb6 {[%clk 0:00:07]} 50. Nb3 {[%clk 0:00:01]}  Rxd3 {[%clk 0:00:07]} 51. Nxd4 {[%clk 0:00:02]}  cxd4 {[%clk 0:00:07]} 52. a7 {[%clk 0:00:02]}  Kxa7 {[%clk 0:00:07]} 53. c5 {[%clk 0:00:03]}  dxc5 {[%clk 0:00:08]} 54. g4 {[%clk 0:00:03]}  fxg4 {[%clk 0:00:08]} 55. f3 {[%clk 0:00:03]}  gxf3+ {[%clk 0:00:09]} 56. Kg3 {[%clk 0:00:04]}  f2+ {[%clk 0:00:09]} 57. Kf4 {[%clk 0:00:05]}  f1=Q+ {[%clk 0:00:09]} 58. Kg5 {[%clk 0:00:06]}  Qf5+ {[%clk 0:00:10]} 59. Kh6 {[%clk 0:00:07]}  Qf4+ {[%clk 0:00:10]} 60. Kg7 {[%clk 0:00:08]}  Qxh4 {[%clk 0:00:10]} 61. Kh6 {[%clk 0:00:09]}  Qg4 {[%clk 0:00:10]} 62. Kh7 {[%clk 0:00:10]}  h4 {[%clk 0:00:11]} 63. Kg8 {[%clk 0:00:10]}  h3 {[%clk 0:00:12]} 64. Kf7 {[%clk 0:00:11]}  h2 {[%clk 0:00:12]} 65. Ke7 {[%clk 0:00:12]}  h1=Q {[%clk 0:00:12]} 66. Kd8 {[%clk 0:00:13]}  c4 {[%clk 0:00:12]} 67. Kc7 {[%clk 0:00:14]}  c3 {[%clk 0:00:12]} 68. Kd6 {[%clk 0:00:15]}  Re3 {[%clk 0:00:12]} 69. Kc5 {[%clk 0:00:16]}  c2 {[%clk 0:00:12]} 70. Kb4 {[%clk 0:00:17]}  b1=Q+ {[%clk 0:00:11]} 71. Ka5 {[%clk 0:00:18]}  Qhe1+ {[%clk 0:00:10]} 72. Ka4 {[%clk 0:00:19]}  d3+ {[%clk 0:00:11]} 73. Ka3 {[%clk 0:00:19]}  Qgb4# {[%clk 0:00:11]} 0-1


[Site "https://www.chess.com"]

[Event "Titled Tuesday Blitz September 14 2021"]
[White "Andreikin, Dmitry"]
[Black "Mitrabha, Guha"]
[WhiteFideId "4158814"]
[BlackFideId "5057000"]
[WhiteElo "3024"]
[BlackElo "2683"]
[Result "0-1"]
[Round "03"]
[TimeControl "180+1"]
[Date "2021.09.15"]
[WhiteClock "0:00:01"]
[BlackClock "0:00:34"]

1. e4 {[%clk 0:03:00]}  c6 {[%clk 0:02:59]} 2. d4 {[%clk 0:02:59]}  d5 {[%clk 0:03:00]} 3. e5 {[%clk 0:02:59]}  Bf5 {[%clk 0:03:00]} 4. Nf3 {[%clk 0:02:58]}  e6 {[%clk 0:03:00]} 5. Be3 {[%clk 0:02:57]}  Ne7 {[%clk 0:03:00]} 6. Nbd2 {[%clk 0:02:57]}  Nd7 {[%clk 0:03:00]} 7. Nb3 {[%clk 0:02:52]}  Bg6 {[%clk 0:03:00]} 8. c3 {[%clk 0:02:47]}  Nf5 {[%clk 0:03:00]} 9. Bf4 {[%clk 0:02:45]}  Be7 {[%clk 0:02:59]} 10. Bd3 {[%clk 0:02:44]}  O-O {[%clk 0:02:59]} 11. O-O {[%clk 0:02:42]}  a5 {[%clk 0:02:59]} 12. a4 {[%clk 0:02:39]}  c5 {[%clk 0:02:58]} 13. Bb5 {[%clk 0:02:32]}  Rc8 {[%clk 0:02:55]} 14. h3 {[%clk 0:02:27]}  cxd4 {[%clk 0:02:52]} 15. Nfxd4 {[%clk 0:02:26]}  Nc5 {[%clk 0:02:50]} 16. Nxf5 {[%clk 0:02:21]}  Bxf5 {[%clk 0:02:49]} 17. Nd4 {[%clk 0:02:21]}  Bg6 {[%clk 0:02:49]} 18. Be3 {[%clk 0:02:20]}  Ne4 {[%clk 0:02:49]} 19. Bd3 {[%clk 0:02:15]}  Bc5 {[%clk 0:02:48]} 20. Qe2 {[%clk 0:02:11]}  Qb6 {[%clk 0:02:48]} 21. Kh2 {[%clk 0:02:03]}  f6 {[%clk 0:02:42]} 22. exf6 {[%clk 0:01:45]}  Rxf6 {[%clk 0:02:40]} 23. Nf3 {[%clk 0:01:46]}  Bxe3 {[%clk 0:02:35]} 24. Qxe3 {[%clk 0:01:46]}  Qxb2 {[%clk 0:02:26]} 25. Rab1 {[%clk 0:01:45]}  Qa3 {[%clk 0:02:22]} 26. Rxb7 {[%clk 0:01:44]}  Qd6+ {[%clk 0:02:19]} 27. Kg1 {[%clk 0:01:42]}  Nc5 {[%clk 0:02:19]} 28. Bxg6 {[%clk 0:01:33]}  Nxb7 {[%clk 0:02:15]} 29. Bc2 {[%clk 0:01:27]}  Qc5 {[%clk 0:02:14]} 30. Qd3 {[%clk 0:01:18]}  g6 {[%clk 0:02:13]} 31. Qa6 {[%clk 0:01:13]}  Qc6 {[%clk 0:02:03]} 32. Qa7 {[%clk 0:01:12]}  Nc5 {[%clk 0:01:59]} 33. Qxa5 {[%clk 0:01:08]}  Rf4 {[%clk 0:01:45]} 34. Nd4 {[%clk 0:00:59]}  Qc7 {[%clk 0:01:42]} 35. Qb5 {[%clk 0:00:56]}  e5 {[%clk 0:01:39]} 36. Nb3 {[%clk 0:00:53]}  Rc4 {[%clk 0:01:33]} 37. Nxc5 {[%clk 0:00:33]}  Qxc5 {[%clk 0:01:29]} 38. Qd7 {[%clk 0:00:33]}  Qc6 {[%clk 0:01:19]} 39. Qxc6 {[%clk 0:00:24]}  R4xc6 {[%clk 0:01:13]} 40. Bb3 {[%clk 0:00:25]}  Rc5 {[%clk 0:01:11]} 41. Re1 {[%clk 0:00:23]}  Re8 {[%clk 0:01:06]} 42. f4 {[%clk 0:00:22]}  e4 {[%clk 0:01:04]} 43. Rd1 {[%clk 0:00:16]}  Rd8 {[%clk 0:01:03]} 44. Rd4 {[%clk 0:00:13]}  Rxc3 {[%clk 0:00:56]} 45. Rxd5 {[%clk 0:00:13]}  Rxd5 {[%clk 0:00:50]} 46. Bxd5+ {[%clk 0:00:14]}  Kg7 {[%clk 0:00:51]} 47. Bxe4 {[%clk 0:00:14]}  Rc4 {[%clk 0:00:51]} 48. Bd3 {[%clk 0:00:09]}  Rxa4 {[%clk 0:00:49]} 49. f5 {[%clk 0:00:09]}  g5 {[%clk 0:00:49]} 50. f6+ {[%clk 0:00:08]}  Kh6 {[%clk 0:00:42]} 51. Bf5 {[%clk 0:00:04]}  Ra7 {[%clk 0:00:37]} 52. Be6 {[%clk 0:00:04]}  Kg6 {[%clk 0:00:35]} 53. f7 {[%clk 0:00:05]}  Kg7 {[%clk 0:00:35]} 54. Kh2 {[%clk 0:00:05]}  Ra4 {[%clk 0:00:34]} 55. Bd5 {[%clk 0:00:04]}  Rd4 {[%clk 0:00:34]} 56. Be6 {[%clk 0:00:02]}  h5 {[%clk 0:00:35]} 57. Bb3 {[%clk 0:00:01]}  Rd3 {[%clk 0:00:34]} 0-1


[Site "https://www.chess.com"]

[Event "Titled Tuesday Blitz September 14 2021"]
[White "Dowgird, Filip"]
[Black "Tabatabaei, M. Amin"]
[WhiteFideId "1121235"]
[BlackFideId "12521213"]
[WhiteElo "2209"]
[BlackElo "2555"]
[Result "0-1"]
[Round "03"]
[TimeControl "180+1"]
[Date "2021.09.15"]
[WhiteClock "0:00:18"]
[BlackClock "0:00:13"]

1. d4 {[%clk 0:02:56]}  Nf6 {[%clk 0:02:56]} 2. Nf3 {[%clk 0:02:56]}  e6 {[%clk 0:02:57]} 3. Bf4 {[%clk 0:02:56]}  b6 {[%clk 0:02:57]} 4. e3 {[%clk 0:02:55]}  Bb7 {[%clk 0:02:58]} 5. Nbd2 {[%clk 0:02:55]}  d5 {[%clk 0:02:57]} 6. Bd3 {[%clk 0:02:47]}  Bd6 {[%clk 0:02:57]} 7. Bg3 {[%clk 0:02:46]}  c5 {[%clk 0:02:56]} 8. c3 {[%clk 0:02:44]}  Nc6 {[%clk 0:02:57]} 9. Ne5 {[%clk 0:02:41]}  O-O {[%clk 0:02:53]} 10. O-O {[%clk 0:02:41]}  Ne7 {[%clk 0:02:53]} 11. Qb1 {[%clk 0:02:40]}  g6 {[%clk 0:02:46]} 12. Bh4 {[%clk 0:02:39]}  Nf5 {[%clk 0:02:46]} 13. Bxf5 {[%clk 0:02:27]}  gxf5 {[%clk 0:02:39]} 14. Bxf6 {[%clk 0:02:26]}  Qxf6 {[%clk 0:02:40]} 15. Nd7 {[%clk 0:02:26]}  Qh6 {[%clk 0:02:39]} 16. f4 {[%clk 0:02:18]}  Rfd8 {[%clk 0:02:36]} 17. Ne5 {[%clk 0:02:18]}  f6 {[%clk 0:02:36]} 18. Nd3 {[%clk 0:02:13]}  Kh8 {[%clk 0:02:35]} 19. a4 {[%clk 0:02:04]}  a5 {[%clk 0:02:31]} 20. b4 {[%clk 0:01:55]}  axb4 {[%clk 0:02:30]} 21. cxb4 {[%clk 0:01:55]}  c4 {[%clk 0:02:30]} 22. Ne1 {[%clk 0:01:50]}  Rg8 {[%clk 0:02:23]} 23. Ndf3 {[%clk 0:01:44]}  Bc6 {[%clk 0:02:10]} 24. a5 {[%clk 0:01:39]}  b5 {[%clk 0:02:01]} 25. Ra2 {[%clk 0:01:36]}  Be8 {[%clk 0:02:01]} 26. Rff2 {[%clk 0:01:28]}  Bh5 {[%clk 0:02:00]} 27. a6 {[%clk 0:01:19]}  Ra7 {[%clk 0:01:58]} 28. Ra5 {[%clk 0:01:19]}  Rb8 {[%clk 0:01:46]} 29. Rfa2 {[%clk 0:01:17]}  Qf8 {[%clk 0:01:45]} 30. Nc2 {[%clk 0:01:12]}  Bxf3 {[%clk 0:01:38]} 31. gxf3 {[%clk 0:01:13]}  Qg7+ {[%clk 0:01:31]} 32. Kh1 {[%clk 0:01:13]}  Rg8 {[%clk 0:01:32]} 33. Qf1 {[%clk 0:01:11]}  Qh6 {[%clk 0:01:26]} 34. Rxb5 {[%clk 0:01:05]}  Rag7 {[%clk 0:01:27]} 35. Ne1 {[%clk 0:01:04]}  Qh3 {[%clk 0:01:06]} 36. Rg2 {[%clk 0:00:52]}  c3 {[%clk 0:00:53]} 37. Qe2 {[%clk 0:00:35]}  Rxg2 {[%clk 0:00:38]} 38. Nxg2 {[%clk 0:00:35]}  c2 {[%clk 0:00:38]} 39. Qxc2 {[%clk 0:00:34]}  Qxf3 {[%clk 0:00:39]} 40. Kg1 {[%clk 0:00:25]}  Qxe3+ {[%clk 0:00:38]} 41. Kf1 {[%clk 0:00:24]}  Qf3+ {[%clk 0:00:31]} 42. Qf2 {[%clk 0:00:20]}  Qd3+ {[%clk 0:00:21]} 43. Qe2 {[%clk 0:00:19]}  Qxe2+ {[%clk 0:00:22]} 44. Kxe2 {[%clk 0:00:19]}  Rxg2+ {[%clk 0:00:22]} 45. Kf3 {[%clk 0:00:19]}  Ra2 {[%clk 0:00:23]} 46. Rb6 {[%clk 0:00:19]}  Bxb4 {[%clk 0:00:19]} 47. Rxb4 {[%clk 0:00:19]}  Rxa6 {[%clk 0:00:19]} 48. Rb7 {[%clk 0:00:19]}  Kg8 {[%clk 0:00:19]} 49. Re7 {[%clk 0:00:19]}  h6 {[%clk 0:00:16]} 50. h4 {[%clk 0:00:19]}  Kf8 {[%clk 0:00:15]} 51. Rh7 {[%clk 0:00:19]}  h5 {[%clk 0:00:15]} 52. Ke3 {[%clk 0:00:18]}  Ra3+ {[%clk 0:00:14]} 53. Ke2 {[%clk 0:00:18]}  Rh3 {[%clk 0:00:13]} 0-1


[Site "https://www.chess.com"]